bitfinex/quotes_BTCUSD_20250901
["timestamp","ask_amount","ask_price","bid_price","bid_amount"]
[1756769420510,0.57712797,108960.0,108950.0,0.43566643]
[1756769420718,0.84939011,108960.0,108950.0,0.43566643]
[1756769420922,0.66583652,108960.0,108950.0,0.43566643]
[1756769421732,0.32583652,108960.0,108950.0,0.43566643]
[1756769422352,0.50939011,108960.0,108950.0,0.43566643]
[1756769422898,0.32583652,108960.0,108950.0,0.43566643]
[1756769424983,0.03378469,108960.0,108950.0,0.43566643]
[1756769426200,0.32583652,108960.0,108950.0,0.43566643]
[1756769426609,0.32583652,108960.0,108950.0,0.43562643]
[1756769429494,0.03378469,108960.0,108950.0,0.43562643]
[1756769429915,0.00197367,108960.0,108950.0,0.28058643]
[1756769430069,0.00197367,108960.0,108950.0,0.4763263]
[1756769430469,0.00197367,108960.0,108950.0,0.49726512]
[1756769431105,0.00197367,108960.0,108950.0,0.34222512]
[1756769431310,0.00197367,108960.0,108950.0,0.49726512]
[1756769431514,0.00197367,108960.0,108950.0,0.89726512]
[1756769433919,0.00197367,108960.0,108950.0,1.18931695]
[1756769434094,0.00197367,108960.0,108950.0,0.89726512]
[1756769434882,0.00197367,108960.0,108950.0,1.18931695]
[1756769435086,0.00197367,108960.0,108950.0,0.74222512]
[1756769435284,0.00197367,108960.0,108950.0,0.89726512]
[1756769436501,0.2940255,108960.0,108950.0,0.74422512]
[1756769436701,0.00197367,108960.0,108950.0,0.74422512]
[1756769436903,0.47757909,108960.0,108950.0,0.13971586]
[1756769437129,0.47757909,108960.0,108950.0,0.4762163]
[1756769437338,0.47757909,108960.0,108950.0,0.3233763]
[1756769437541,0.47757909,108960.0,108950.0,0.4783763]
[1756769438323,0.2940255,108960.0,108950.0,0.4783763]
[1756769439527,0.00197367,108960.0,108950.0,0.79136695]
[1756769439734,0.00197367,108960.0,108950.0,0.49931512]
[1756769439968,0.00197367,108960.0,108950.0,0.79136695]
[1756769440147,0.00197367,108960.0,108950.0,0.49931512]
[1756769440913,0.00197367,108960.0,108950.0,0.53115413]
[1756769441338,0.00197367,108960.0,108950.0,0.82320596]
[1756769441998,0.00197367,108960.0,108950.0,0.74431512]
[1756769442199,0.00197367,108960.0,108950.0,0.89931512]
[1756769442818,0.10197367,108960.0,108950.0,0.89931512]
[1756769444640,0.10197367,108960.0,108950.0,0.74431512]
[1756769444870,0.00197367,108960.0,108950.0,0.89931512]
[1756769448813,0.00197367,108960.0,108950.0,1.19136695]
[1756769449005,0.00197367,108960.0,108950.0,0.89931512]
[1756769450655,0.00197367,108960.0,108950.0,1.19136695]
[1756769451594,0.00197367,108960.0,108950.0,0.89931512]
[1756769451799,0.00197367,108960.0,108950.0,1.19136695]
[1756769452009,0.00197367,108960.0,108950.0,1.21894795]
[1756769452634,0.00197367,108960.0,108950.0,0.92689612]
[1756769452837,0.00197367,108960.0,108950.0,1.21894795]
[1756769453939,0.00197367,108960.0,108950.0,0.92689612]
[1756769454159,0.00197367,108960.0,108950.0,1.21902795]
[1756769454603,0.00197367,108960.0,108950.0,0.92697612]
[1756769454844,0.00197367,108960.0,108950.0,0.77189612]
[1756769455098,0.00197367,108960.0,108950.0,0.92705612]
[1756769455782,0.00197367,108960.0,108950.0,0.77189612]
[1756769456023,0.00197367,108960.0,108950.0,0.92713612]
[1756769457093,0.00197367,108960.0,108950.0,0.77189612]
[1756769457293,0.00197367,108960.0,108950.0,0.92713612]
[1756769458860,0.00197367,108960.0,108950.0,0.92705612]
[1756769459929,0.00197367,108960.0,108950.0,0.77189612]
[1756769460136,0.00197367,108960.0,108950.0,0.92705612]
[1756769460542,0.00197367,108960.0,108950.0,0.77189612]
[1756769460748,0.00197367,108960.0,108950.0,0.74215512]
[1756769460961,0.2940255,108960.0,108950.0,0.3181863]
[1756769461197,0.2940255,108960.0,108950.0,0.4733863]
[1756769461410,0.00197367,108960.0,108950.0,0.49949512]
[1756769461827,0.00197367,108960.0,108950.0,0.79154695]
[1756769463169,0.00197367,108960.0,108950.0,1.19154695]
[1756769463705,0.00197367,108960.0,108950.0,0.89949512]
[1756769464980,0.00197367,108960.0,108950.0,0.92707612]
[1756769465194,0.00197367,108960.0,108950.0,0.77187612]
[1756769465598,0.00197367,108960.0,108950.0,0.92723612]
[1756769467413,0.00197367,108960.0,108950.0,1.21928795]
[1756769473785,0.00197367,108960.0,108950.0,1.06392795]
[1756769474007,0.00197367,108960.0,108950.0,0.77187612]
[1756769474228,0.00197367,108960.0,108950.0,0.92727612]
[1756769474644,0.00197367,108960.0,108950.0,0.92739612]
[1756769475075,0.00197367,108960.0,108950.0,0.52523612]
[1756769475487,0.00197367,108960.0,108950.0,0.52729612]
[1756769478663,0.00197367,108960.0,108950.0,0.12149699]
[1756769478664,1.10963092,108960.0,108950.0,0.12149699]
[1756769478869,1.13502237,108960.0,108950.0,0.09391599]
[1756769479127,1.13502237,108960.0,108950.0,0.24939599]
[1756769479537,1.16261137,108960.0,108950.0,0.24939599]
[1756769480374,1.16261137,108960.0,108950.0,0.24943599]
[1756769480789,1.16261137,108960.0,108950.0,0.24843599]
[1756769481211,1.16261137,108960.0,108950.0,0.24943599]
[1756769481815,1.16261137,108960.0,108950.0,0.09391599]
[1756769482023,1.16261137,108960.0,108950.0,0.24943599]
[1756769482235,1.16261137,108960.0,108950.0,0.24843599]
[1756769482444,1.13721992,108960.0,108950.0,0.24743599]
[1756769483291,1.16261137,108960.0,108950.0,0.24843599]
[1756769484197,1.16261137,108960.0,108950.0,0.24847599]
[1756769485056,1.4546632,108960.0,108950.0,0.001]
[1756769485925,0.18357044,108950.0,108940.0,0.15552]
[1756769486134,0.7676741,108950.0,108940.0,0.24743599]
[1756769486273,0.18360414,108930.0,108920.0,0.07354631]
[1756769486484,0.7677078,108930.0,108920.0,0.3210223]
[1756769486906,0.7953038,108930.0,108920.0,0.24747599]
[1756769487665,0.7953038,108930.0,108920.0,0.24947599]
[1756769488257,1.1353038,108930.0,108920.0,0.24947599]
[1756769488867,1.1353038,108930.0,108920.0,0.25047599]
[1756769490737,1.1353038,108930.0,108920.0,0.09491599]
[1756769490951,1.45274708,108930.0,108920.0,0.09491599]
[1756769491160,1.45274708,108930.0,108920.0,0.15844]
[1756769491366,1.42735563,108930.0,108920.0,0.15844]
[1756769491529,1.1353038,108930.0,108920.0,0.15644]
[1756769491815,1.1353038,108930.0,108920.0,0.15544]
[1756769492643,0.55120014,108930.0,108920.0,0.15544]
[1756769492836,1.1353038,108930.0,108920.0,0.15544]
[1756769494197,0.183621,108920.0,108910.0,0.07056]
[1756769494428,0.81567283,108920.0,108910.0,0.31811599]
[1756769494645,0.81567283,108920.0,108910.0,0.31815599]
[1756769494845,0.84327283,108920.0,108910.0,0.31815599]
[1756769495510,0.84327283,108920.0,108910.0,0.31824303]
[1756769496361,0.84327283,108920.0,108910.0,0.31924303]
[1756769496955,0.84327283,108920.0,108910.0,0.16356303]
[1756769497199,0.84327283,108920.0,108910.0,0.31920303]
[1756769497643,0.84327283,108920.0,108910.0,0.16356303]
[1756769497858,0.84327283,108920.0,108910.0,0.31920303]
[1756769498118,0.84327283,108920.0,108910.0,0.32434303]
[1756769498326,0.84327283,108920.0,108910.0,0.16672303]
[1756769498507,0.84327283,108920.0,108910.0,0.32232303]
[1756769500092,0.84327283,108920.0,108910.0,0.31916303]
[1756769500716,1.13532466,108920.0,108910.0,0.16356303]
[1756769500944,1.16071611,108920.0,108910.0,0.24860303]
[1756769501145,1.31631611,108920.0,108910.0,0.15668704]
[1756769501341,1.16071611,108920.0,108910.0,0.15668704]
[1756769502194,1.16071611,108920.0,108910.0,0.00108704]
[1756769502395,1.16071611,108920.0,108910.0,0.15668704]
[1756769502600,1.16071611,108920.0,108910.0,0.00108704]
[1756769504057,1.31627611,108920.0,108910.0,0.00108704]
[1756769507001,1.31619611,108920.0,108910.0,0.00108704]
[1756769507381,1.08751112,108920.0,108910.0,0.00108704]
[1756769507582,0.84052328,108920.0,108910.0,0.00108704]
[1756769507744,1.31619611,108920.0,108910.0,0.00108704]
[1756769511765,0.57661245,108920.0,108910.0,0.00108704]
[1756769511965,0.57661245,108920.0,108910.0,0.00622704]
[1756769511966,0.84327283,108920.0,108910.0,0.00622704]
[1756769512236,0.84327283,108920.0,108910.0,0.09814303]
[1756769515366,0.84327283,108920.0,108910.0,0.28178089]
[1756769515569,0.31965183,108920.0,108910.0,0.28178089]
[1756769515806,0.29205183,108920.0,108910.0,0.28178089]
[1756769516514,0.19278185,108940.0,108930.0,0.18360414]
[1756769516850,0.58020192,108940.0,108930.0,0.25237599]
[1756769517807,1.16430558,108940.0,108930.0,0.25237599]
[1756769519789,1.16530558,108940.0,108930.0,0.25237599]
[1756769520069,1.16530558,108940.0,108930.0,0.09705599]
[1756769520279,1.16530558,108940.0,108930.0,0.25229599]
[1756769520983,1.16530558,108940.0,108930.0,0.09191599]
[1756769521601,1.21447065,108940.0,108930.0,0.09191599]
[1756769522057,1.66188248,108940.0,108930.0,0.001]
[1756769522265,0.523621,108920.0,108910.0,0.08248704]
[1756769522441,0.81567283,108920.0,108910.0,0.17440303]
[1756769522645,0.81567283,108920.0,108910.0,0.17638303]
[1756769522855,0.84327283,108920.0,108910.0,0.17638303]
[1756769523938,0.81567283,108920.0,108910.0,0.17638303]
[1756769524794,0.81567283,108920.0,108910.0,0.09516303]
[1756769524958,0.81567283,108920.0,108910.0,0.09300303]
[1756769525159,1.13311611,108920.0,108910.0,0.09300303]
[1756769525368,1.15294492,108920.0,108910.0,0.09300303]
[1756769526379,1.30846492,108920.0,108910.0,0.00108704]
[1756769526743,1.33606792,108920.0,108910.0,0.00108704]
[1756769529385,1.31059647,108920.0,108910.0,0.00108704]
[1756769532548,1.33598792,108920.0,108910.0,0.00108704]
[1756769533713,1.33642792,108920.0,108910.0,0.00108704]
[1756769534529,0.72693281,108920.0,108910.0,0.00629704]
[1756769534728,1.31103647,108920.0,108910.0,0.00629704]
[1756769535813,1.01898464,108920.0,108910.0,0.00629704]
[1756769536458,0.83550164,108920.0,108910.0,0.09821303]
[1756769537632,0.83550164,108920.0,108910.0,0.09614303]
[1756769538464,0.83550164,108920.0,108910.0,0.09821303]
[1756769539361,0.54344981,108920.0,108910.0,0.09614303]
[1756769539585,0.83550164,108920.0,108910.0,0.09300303]
[1756769539787,0.83550164,108920.0,108910.0,0.09614303]
[1756769540481,0.54344981,108920.0,108910.0,0.09821303]
[1756769540690,0.83550164,108920.0,108910.0,0.09821303]
[1756769541256,0.81567283,108920.0,108910.0,0.09821303]
[1756769542070,0.81567283,108920.0,108910.0,0.09300303]
[1756769542513,0.81567283,108920.0,108910.0,0.09821303]
[1756769542727,0.523621,108920.0,108910.0,0.09300303]
[1756769542943,1.30961034,108920.0,108910.0,0.00108704]
[1756769543153,0.83548706,108920.0,108910.0,0.00108704]
[1756769543363,0.83548706,108920.0,108910.0,0.00629704]
[1756769543364,0.99228706,108920.0,108910.0,0.00629704]
[1756769543573,0.97247283,108920.0,108910.0,0.00629704]
[1756769543778,1.00007783,108920.0,108910.0,0.00629704]
[1756769543983,1.00007783,108920.0,108910.0,0.00108704]
[1756769544318,1.00007783,108920.0,108910.0,0.00315704]
[1756769544561,1.00007783,108920.0,108910.0,0.00629704]
[1756769544969,1.00007783,108920.0,108910.0,0.00422704]
[1756769545587,1.00007783,108920.0,108910.0,0.00629704]
[1756769545999,0.84327783,108920.0,108910.0,0.09821303]
[1756769549333,0.86310105,108920.0,108910.0,0.09821303]
[1756769549548,0.523621,108920.0,108910.0,0.09821303]
[1756769549751,0.81567283,108920.0,108910.0,0.09821303]
[1756769553817,0.83551003,108920.0,108910.0,0.09821303]
[1756769554766,0.81567283,108920.0,108910.0,0.09300303]
[1756769554989,0.84106428,108920.0,108910.0,0.09300303]
[1756769555185,1.01786937,108920.0,108910.0,0.09300303]
[1756769555744,1.04547137,108920.0,108910.0,0.09300303]
[1756769557245,0.88851137,108920.0,108910.0,0.09300303]
[1756769557477,0.57106809,108920.0,108910.0,0.09801303]
[1756769557686,0.86311992,108920.0,108910.0,0.09801303]
[1756769558110,0.84327483,108920.0,108910.0,0.09801303]
[1756769559418,0.86312496,108920.0,108910.0,0.09801303]
[1756769559905,0.81567283,108920.0,108910.0,0.09801303]
[1756769560741,0.81567283,108920.0,108910.0,0.25533303]
[1756769563108,0.81567283,108920.0,108910.0,0.09801303]
[1756769563289,0.81567283,108920.0,108910.0,0.09598303]
[1756769563494,0.81567283,108920.0,108910.0,0.25326303]
[1756769563697,0.81567283,108920.0,108910.0,0.25028303]
[1756769564300,0.8355251,108920.0,108910.0,0.25028303]
[1756769565336,0.54347327,108920.0,108910.0,0.25326303]
[1756769565494,0.8355251,108920.0,108910.0,0.25529303]
[1756769565696,0.8355255,108920.0,108910.0,0.25529303]
[1756769565920,0.54347367,108920.0,108910.0,0.25529303]
[1756769566128,0.8355255,108920.0,108910.0,0.25529303]
[1756769570533,0.8355255,108920.0,108910.0,0.25302303]
[1756769570735,0.8355255,108920.0,108910.0,0.25004303]
[1756769570899,0.86091695,108920.0,108910.0,0.25004303]
[1756769571987,0.86091695,108920.0,108910.0,0.25302303]
[1756769572348,0.86091695,108920.0,108910.0,0.25004303]
[1756769573209,0.86091869,108920.0,108910.0,0.25004303]
[1756769574139,0.86091869,108920.0,108910.0,0.25302303]
[1756769574785,0.86091869,108920.0,108910.0,0.25004303]
[1756769575010,0.86091869,108920.0,108910.0,0.25302303]
[1756769576721,0.83552724,108920.0,108910.0,0.25505303]
[1756769577467,0.83552724,108920.0,108910.0,0.25302303]
[1756769577667,0.83552724,108920.0,108910.0,0.25008303]
[1756769577871,0.83552724,108920.0,108910.0,0.25509303]
[1756769578342,0.83552724,108920.0,108910.0,0.25306303]
[1756769578656,0.83552724,108920.0,108910.0,0.25509303]
[1756769579740,0.83552724,108920.0,108910.0,0.25306303]
[1756769580531,0.83552724,108920.0,108910.0,0.25509303]
[1756769580731,0.83552724,108920.0,108910.0,0.25306303]
[1756769581187,1.31001052,108920.0,108910.0,0.00108704]
[1756769581506,1.33761352,108920.0,108910.0,0.00108704]
[1756769581735,1.04556169,108920.0,108910.0,0.00108704]
[1756769585664,1.36243153,108920.0,108910.0,0.00108704]
[1756769586314,1.0703797,108920.0,108910.0,0.00108704]
[1756769592049,0.9133397,108920.0,108910.0,0.00620704]
[1756769592264,1.01997024,108920.0,108910.0,0.00620704]
[1756769592699,1.04536169,108920.0,108910.0,0.00108704]
[1756769593340,1.33741352,108920.0,108910.0,0.00108704]
[1756769593571,1.36223153,108920.0,108910.0,0.00108704]
[1756769595192,0.52365472,108900.0,108890.0,0.00317]
[1756769595394,0.52365472,108900.0,108880.0,0.07671631]
[1756769595395,0.18367159,108890.0,108880.0,0.07671631]
[1756769595732,0.50111487,108890.0,108880.0,0.1686323]
[1756769595939,0.50111487,108890.0,108880.0,0.09703599]
[1756769596526,0.52872487,108890.0,108880.0,0.09703599]
[1756769597816,0.54856477,108890.0,108880.0,0.09703599]
[1756769598470,0.52872487,108890.0,108880.0,0.09903599]
[1756769598671,0.52872487,108890.0,108880.0,0.09703599]
[1756769598892,0.52972487,108890.0,108880.0,0.09703599]
[1756769599095,1.02652487,108890.0,108880.0,0.09508599]
[1756769599312,1.02652487,108890.0,108880.0,0.09608599]
[1756769599484,1.04634903,108890.0,108880.0,0.09608599]
[1756769599718,1.04534903,108890.0,108880.0,0.09508599]
[1756769599839,1.04634903,108890.0,108880.0,0.09508599]
[1756769600273,1.02652487,108890.0,108880.0,0.09508599]
[1756769600496,1.05367253,108890.0,108880.0,0.09508599]
[1756769600831,1.05367253,108890.0,108880.0,0.09191599]
[1756769601321,1.05367253,108890.0,108880.0,0.09703599]
[1756769601729,0.89687253,108890.0,108880.0,0.09703599]
[1756769601930,1.05359253,108890.0,108880.0,0.09703599]
[1756769603704,0.89687253,108890.0,108880.0,0.09703599]
[1756769603933,1.05363253,108890.0,108880.0,0.09703599]
[1756769606477,1.05347253,108890.0,108880.0,0.09703599]
[1756769611329,0.89687253,108890.0,108880.0,0.09703599]
[1756769611529,1.05335253,108890.0,108880.0,0.09703599]
[1756769612274,0.52370533,108870.0,108860.0,0.15961]
[1756769612388,1.10780899,108870.0,108860.0,0.25347599]
[1756769612835,0.84336716,108870.0,108860.0,0.25347599]
[1756769613488,0.84341447,108870.0,108860.0,0.25347599]
[1756769613696,0.84341447,108870.0,108860.0,0.25447599]
[1756769614292,0.84341447,108870.0,108860.0,0.10003599]
[1756769614513,0.84341447,108870.0,108860.0,0.25647599]
[1756769614696,0.55136264,108870.0,108860.0,0.25647599]
[1756769614896,0.84341447,108870.0,108860.0,0.25647599]
[1756769615101,1.16085775,108870.0,108860.0,0.10003599]
[1756769615507,1.16085775,108870.0,108860.0,0.09903599]
[1756769615708,1.16085775,108870.0,108860.0,0.09703599]
[1756769616126,1.16085775,108870.0,108860.0,0.09803599]
[1756769618926,1.16085775,108870.0,108860.0,0.09608599]
[1756769619129,1.16085775,108870.0,108860.0,0.09291599]
[1756769619341,1.16085775,108870.0,108860.0,0.09608599]
[1756769619582,1.31761775,108870.0,108860.0,0.09608599]
[1756769619784,1.16085775,108870.0,108860.0,0.09608599]
[1756769620110,1.16085775,108870.0,108860.0,0.09291599]
[1756769620687,1.16085775,108870.0,108860.0,0.09608599]
[1756769620849,1.31765775,108870.0,108860.0,0.001]
[1756769621458,1.31765775,108870.0,108860.0,0.00417]
[1756769622233,1.31765775,108870.0,108860.0,0.001]
[1756769622871,1.20231551,108870.0,108860.0,0.001]
[1756769623079,1.35903551,108870.0,108860.0,0.001]
[1756769623491,1.35903551,108870.0,108860.0,0.00417]
[1756769627047,1.35891551,108870.0,108860.0,0.00627]
[1756769628247,1.20231551,108870.0,108860.0,0.00627]
[1756769628489,1.35891551,108870.0,108860.0,0.00627]
[1756769628696,1.20231551,108870.0,108860.0,0.00627]
[1756769628894,1.35887551,108870.0,108860.0,0.00627]
[1756769629722,1.17692406,108870.0,108860.0,0.00627]
[1756769631894,1.33348406,108870.0,108860.0,0.00627]
[1756769632282,1.35887551,108870.0,108860.0,0.00627]
[1756769632886,1.20231551,108870.0,108860.0,0.00627]
[1756769633185,1.35879551,108870.0,108860.0,0.00627]
[1756769635688,1.20231551,108870.0,108860.0,0.00627]
[1756769636857,1.35863551,108870.0,108860.0,0.00627]
[1756769640571,1.20231551,108870.0,108860.0,0.00627]
[1756769640795,0.21136264,108870.0,108860.0,0.09818599]
[1756769641007,0.50341447,108870.0,108860.0,0.09818599]
[1756769641674,0.84341447,108870.0,108860.0,0.09818599]
[1756769643853,0.55136264,108870.0,108860.0,0.2819082]
[1756769644079,0.36765731,108870.0,108860.0,0.4380682]
[1756769644278,0.34004731,108870.0,108860.0,0.2819082]
[1756769644485,0.52375264,108870.0,108860.0,0.4382282]
[1756769644768,0.63209914,108870.0,108860.0,0.4382282]
[1756769645180,0.81580447,108870.0,108860.0,0.4382282]
[1756769645839,0.63209914,108870.0,108860.0,0.4382282]
[1756769646257,4.731e-05,108870.0,108860.0,0.4382282]
[1756769646463,4.731e-05,108870.0,108860.0,0.80092003]
[1756769646664,4.731e-05,108870.0,108860.0,0.82185885]
[1756769647704,4.731e-05,108870.0,108860.0,0.84946485]
[1756769648323,4.731e-05,108870.0,108860.0,0.84846485]
[1756769648759,4.731e-05,108870.0,108860.0,0.85446485]
[1756769649620,4.731e-05,108870.0,108860.0,0.85846485]
[1756769649829,4.731e-05,108870.0,108860.0,1.25846485]
[1756769653972,0.19280205,108920.0,108910.0,0.18363786]
[1756769653973,0.18362161,108920.0,108910.0,0.18363786]
[1756769654183,0.49551903,108920.0,108910.0,0.43291385]
[1756769654394,0.83551903,108920.0,108910.0,0.43613385]
[1756769655249,0.81572001,108920.0,108910.0,0.09191599]
[1756769655457,0.83550846,108920.0,108910.0,0.24927599]
[1756769655872,0.83650846,108920.0,108910.0,0.24927599]
[1756769656123,0.81672001,108920.0,108910.0,0.09191599]
[1756769656540,0.81672001,108920.0,108910.0,0.24931599]
[1756769656744,0.54887158,108920.0,108910.0,0.24931599]
[1756769656931,0.84092341,108920.0,108910.0,0.09191599]
[1756769657071,0.84092341,108920.0,108910.0,0.24927599]
[1756769658276,0.84092341,108920.0,108910.0,0.43291385]
[1756769658534,0.84092341,108920.0,108910.0,0.24927599]
[1756769659350,0.54887158,108920.0,108910.0,0.24927599]
[1756769659578,0.84092341,108920.0,108910.0,0.24927599]
[1756769660895,0.84092341,108920.0,108910.0,0.43291385]
[1756769661118,0.84092341,108920.0,108910.0,0.43613385]
[1756769661518,0.84092341,108920.0,108910.0,0.43291385]
[1756769661943,0.84092341,108920.0,108910.0,0.43613385]
[1756769662771,0.84092341,108920.0,108910.0,0.43820385]
[1756769663842,0.65730241,108920.0,108910.0,0.43820385]
[1756769664059,0.84092341,108920.0,108910.0,0.43820385]
[1756769666325,0.84092341,108920.0,108910.0,0.43613385]
[1756769666587,0.84092341,108920.0,108910.0,0.43820385]
[1756769667038,0.84092341,108920.0,108910.0,0.43780385]
[1756769668204,0.54887158,108920.0,108910.0,0.43780385]
[1756769668411,0.84092341,108920.0,108910.0,0.43780385]
[1756769668878,0.36525058,108920.0,108910.0,0.43780385]
[1756769669081,0.65730241,108920.0,108910.0,0.43780385]
[1756769670557,0.84092341,108920.0,108910.0,0.43780385]
[1756769671129,0.84092341,108920.0,108910.0,0.28084385]
[1756769671338,0.84092341,108920.0,108910.0,0.43772385]
[1756769675686,0.84092341,108920.0,108910.0,0.43752385]
[1756769678774,0.84092341,108920.0,108910.0,0.28084385]
[1756769678989,0.84092341,108920.0,108910.0,0.25169599]
[1756769679201,0.84092341,108920.0,108910.0,0.25373599]
[1756769679677,0.54887158,108920.0,108910.0,0.43737385]
[1756769679897,0.84092341,108920.0,108910.0,0.43737385]
[1756769680276,0.54887158,108920.0,108910.0,0.43737385]
[1756769680489,0.84092341,108920.0,108910.0,0.43737385]
[1756769681234,0.84092341,108920.0,108910.0,0.25373599]
[1756769682521,0.84092341,108920.0,108910.0,0.09721599]
[1756769682732,0.84092341,108920.0,108910.0,0.24839599]
[1756769683320,0.84092341,108920.0,108910.0,0.25156599]
[1756769689886,0.54887158,108920.0,108910.0,0.25156599]
[1756769690094,0.84092341,108920.0,108910.0,0.43728385]
[1756769690855,0.84092341,108920.0,108910.0,0.25364599]
[1756769691855,0.84092341,108920.0,108910.0,0.09716599]
[1756769692057,0.84092341,108920.0,108910.0,0.25332599]
[1756769695073,0.50087623,108920.0,108910.0,0.25332599]
[1756769698830,0.2088244,108920.0,108910.0,0.25332599]
[1756769699055,0.50087623,108920.0,108910.0,0.25332599]
[1756769699952,0.84087623,108920.0,108910.0,0.25332599]
[1756769700408,0.84087623,108920.0,108910.0,0.25316599]
[1756769701065,0.84087623,108920.0,108910.0,0.09191599]
[1756769701286,0.86626768,108920.0,108910.0,0.24787599]
[1756769701534,0.5488244,108920.0,108910.0,0.25312599]
[1756769701757,0.84087623,108920.0,108910.0,0.43676385]
[1756769702204,0.5488244,108920.0,108910.0,0.43676385]
[1756769702437,0.84087623,108920.0,108910.0,0.25312599]
[1756769703281,0.5488244,108920.0,108910.0,0.25312599]
[1756769703506,0.84087623,108920.0,108910.0,0.25312599]
[1756769703976,0.84087623,108920.0,108910.0,0.24787599]
[1756769704189,0.84087623,108920.0,108910.0,0.25104599]
[1756769704398,0.84087623,108920.0,108910.0,0.09191599]
[1756769704612,0.89386568,108920.0,108910.0,0.24791599]
[1756769705823,0.89386568,108920.0,108910.0,0.09191599]
[1756769706034,0.89386568,108920.0,108910.0,0.24791599]
[1756769708108,0.86847423,108920.0,108910.0,0.25316599]
[1756769709787,0.5764224,108920.0,108910.0,0.25316599]
[1756769710009,0.86847423,108920.0,108910.0,0.25316599]
[1756769711612,0.5764224,108920.0,108910.0,0.25316599]
[1756769711820,0.86847423,108920.0,108910.0,0.25316599]
[1756769717915,0.0528014,108920.0,108910.0,0.25316599]
[1756769718131,0.0252034,108920.0,108910.0,0.43680385]
[1756769719962,0.0242034,108920.0,108910.0,0.43680385]
[1756769720168,0.34,108930.0,108920.0,0.183621]
[1756769720390,0.34,108930.0,108920.0,0.28322368]
[1756769720603,0.34,108930.0,108920.0,0.28092842]
[1756769720807,0.36123903,108930.0,108920.0,0.28092842]
[1756769721659,0.02123903,108930.0,108920.0,0.28092842]
[1756769721898,0.34,108940.0,108930.0,0.18360414]
[1756769722106,0.34,108940.0,108930.0,0.43890518]
[1756769722317,0.027593,108950.0,108940.0,0.18358729]
[1756769722532,0.367593,108950.0,108940.0,0.35150812]
[1756769722737,0.34,108950.0,108940.0,0.35135328]
[1756769723162,0.63205183,108950.0,108940.0,0.35135328]
[1756769723785,0.63405183,108950.0,108940.0,0.35135328]
[1756769723993,0.65321162,108950.0,108940.0,0.35135328]
[1756769724210,0.36115979,108950.0,108940.0,0.35235328]
[1756769724425,0.65321162,108950.0,108940.0,0.35435328]
[1756769724852,0.36115979,108950.0,108940.0,0.35435328]
[1756769725768,0.83678206,108950.0,108940.0,0.35435328]
[1756769725965,0.83678206,108950.0,108940.0,0.51015328]
[1756769726389,0.83678206,108950.0,108940.0,0.35435328]
[1756769726557,0.83678206,108950.0,108940.0,0.51015328]
[1756769727433,0.86217351,108950.0,108940.0,0.16551599]
[1756769727738,0.86217351,108950.0,108940.0,0.32131599]
[1756769728553,0.86217351,108950.0,108940.0,0.16551599]
[1756769728758,0.86217351,108950.0,108940.0,0.31931599]
[1756769729323,0.86317351,108950.0,108940.0,0.31931599]
[1756769729531,0.86317351,108950.0,108940.0,0.31831599]
[1756769729941,0.83778206,108950.0,108940.0,0.50715328]
[1756769730145,0.83778206,108950.0,108940.0,0.32356599]
[1756769730736,0.83778206,108950.0,108940.0,0.31831599]
[1756769732754,0.83778206,108950.0,108940.0,0.50715328]
[1756769734041,0.54573023,108950.0,108940.0,0.50715328]
[1756769734251,0.83778206,108950.0,108940.0,0.50715328]
[1756769734461,0.83778206,108950.0,108940.0,0.16776599]
[1756769734879,0.83778206,108950.0,108940.0,0.16251599]
[1756769735091,0.83778206,108950.0,108940.0,0.31831599]
[1756769735501,0.86317351,108950.0,108940.0,0.31831599]
[1756769736122,0.89076651,108950.0,108940.0,0.31831599]
[1756769737925,0.86537506,108950.0,108940.0,0.31831599]
[1756769738144,0.86537506,108950.0,108940.0,0.32358599]
[1756769738799,0.83778206,108950.0,108940.0,0.32358599]
[1756769740232,0.83778206,108950.0,108940.0,0.31831599]
[1756769740435,0.83778206,108950.0,108940.0,0.16251599]
[1756769740638,0.83778206,108950.0,108940.0,0.31831599]
[1756769742303,0.83778206,108950.0,108940.0,0.32148599]
[1756769744645,0.83778206,108950.0,108940.0,0.31831599]
[1756769745658,0.02215979,108950.0,108940.0,0.79922511]
[1756769745887,0.02215979,108950.0,108940.0,0.82016393]
[1756769745888,0.001,108950.0,108940.0,0.82016393]
[1756769746302,0.001,108950.0,108940.0,0.5281121]
[1756769746555,0.001,108950.0,108940.0,0.84774893]
[1756769746799,0.4487223,108980.0,108970.0,0.18353675]
[1756769747038,0.4211353,108980.0,108970.0,0.43652274]
[1756769747253,0.0848133,108980.0,108970.0,0.43652274]
[1756769747679,0.4248133,108980.0,108970.0,0.43652274]
[1756769747884,0.60833321,108980.0,108970.0,0.43652274]
[1756769748115,0.60838039,108980.0,108970.0,0.43442274]
[1756769748306,0.4456839,108980.0,108970.0,0.43652274]
[1756769749765,0.4466839,108980.0,108970.0,0.43652274]
[1756769750313,0.3655486,108980.0,108970.0,0.43652274]
[1756769750526,0.65760043,108980.0,108970.0,0.43652274]
[1756769751334,0.84112034,108980.0,108970.0,0.09191599]
[1756769751535,0.86651179,108980.0,108970.0,0.24767599]
[1756769752225,0.86651179,108980.0,108970.0,0.09191599]
[1756769752431,0.86651179,108980.0,108970.0,0.24767599]
[1756769753373,0.86651179,108980.0,108950.0,0.26943313]
[1756769753374,0.18355359,108960.0,108950.0,0.25708461]
[1756769753573,1.1330487,108960.0,108950.0,0.24819599]
[1756769754170,1.1606387,108960.0,108950.0,0.24819599]
[1756769754662,1.1606387,108960.0,108950.0,0.24919599]
[1756769755854,1.1606387,108960.0,108950.0,0.25019599]
[1756769756065,0.88038845,108960.0,108950.0,0.25019599]
[1756769756909,0.88038845,108960.0,108950.0,0.24919599]
[1756769757319,0.88038845,108960.0,108950.0,0.24819599]
[1756769758197,0.34,108940.0,108930.0,0.07671631]
[1756769758445,0.34,108940.0,108930.0,0.3247923]
[1756769758446,0.8274407,108940.0,108930.0,0.3247923]
[1756769758696,0.8274407,108940.0,108930.0,0.3268923]
[1756769759424,0.8274407,108940.0,108930.0,0.25334599]
[1756769759619,0.8274407,108940.0,108930.0,0.25447637]
[1756769759865,0.8274407,108940.0,108930.0,0.25229637]
[1756769760077,0.8274407,108940.0,108930.0,0.24912637]
[1756769760299,0.8550357,108940.0,108930.0,0.25012637]
[1756769760516,0.8550357,108940.0,108930.0,0.25539637]
[1756769761249,0.34,108940.0,108930.0,0.43900051]
[1756769761459,0.027592,108950.0,108940.0,0.18358729]
[1756769761661,0.34,108950.0,108940.0,0.27779812]
[1756769761871,0.34,108950.0,108940.0,0.28077328]
[1756769762074,0.21114358,108960.0,108950.0,0.18357044]
[1756769762304,0.52355458,108960.0,108950.0,0.43679643]
[1756769762703,0.52355458,108960.0,108950.0,0.25322599]
[1756769763899,0.52455458,108960.0,108950.0,0.25322599]
[1756769764111,0.52455458,108960.0,108950.0,0.43679643]
[1756769764112,0.341,108960.0,108950.0,0.43679643]
[1756769764320,0.52455359,108960.0,108950.0,0.43679643]
[1756769764741,0.52455359,108960.0,108950.0,0.25322599]
[1756769765015,0.52455359,108960.0,108950.0,0.43679643]